Cogmind - Beta 11 X8 @@@ ROGUE MODE // 2021.11.27 @ 15:56:38 Player: WayneKnight Result: Destroyed by DAS Turret with DAS Cannon Performance ------------- Evolutions (1) 500 Regions Visited (5) 1000 Robots Destroyed (56) 280 Value Destroyed (1344) 1344 Prototype IDs (28) 560 Alien Tech Used (0) 0 Bonus (-32) -32 TOTAL SCORE: 3652 Bonus ------- Follower Combat Kills 33 Aligned with FarCom 300 Friendly Fire -365 Cogmind --------- Core Integrity 0/400 Matter 374/500 Energy 100/100 System Corruption 0% Temperature Cool (0) Movement Core (100) Ox1 Location -9/Exiles Parts ------- > --- POWER (1) -------- (None) > --- PROPULSION (2) --- (None) > --- UTILITY (4) ------ High-capacity Matter Pod > --- WEAPON (2) ------- Katana > --- INVENTORY (5) ---- Ion Engine Combat Airjet Skeleton Box PSU Rigger Peak State ------------ > --- POWER ------------ Deuterium Engine > --- PROPULSION ------- Light Treads Light Treads > --- UTILITY ---------- Large Storage Unit Visual Processing Unit Light Armor Plating Light Armor Plating > --- WEAPON ----------- Advanced Beam Cannon Shotgun > --- INVENTORY -------- Ion Engine Ion Engine Light Treads Light Treads Light Treads Light Treads Medium Storage Unit Signal Interpreter Heavy Assault Rifle Shotgun Shotgun Shotgun Grenade Launcher Katana [Rating: 17] Favorites ----------- Power Ion Engine Engine Ion Engine Propulsion Light Treads Treads Light Treads Leg Aluminum Leg Utility Light Armor Plating Storage Large Storage Unit Processor Visual Processing Unit Protection Light Armor Plating Weapon Shotgun Energy Gun EM Pulse Gun Energy Cannon Advanced Beam Cannon Ballistic Gun Shotgun Launcher Grenade Launcher Slashing Weapon Katana Build | -11 -10 -10 -9 -9 -9 ------- Run | Scr Mat Min Mat Min Exi Slots Evolved 2 | . . . 2 . . Power . | . . . . . . Propulsion . | . . . . . . Utility 2 | . . . 2 . . Weapon . | . . . . . . Parts Attached 52 | 3 15 1 8 9 16 Power 3 | . 1 1 1 . . Engine 3 | . 1 1 1 . . Core . | . . . . . . Reactor . | . . . . . . Propulsion 12 | 2 1 . 2 3 4 Treads 12 | 2 1 . 2 3 4 Leg . | . . . . . . Wheel . | . . . . . . Hover . | . . . . . . Flight . | . . . . . . Utility 13 | . 5 . 2 3 3 Device . | . . . . . . Storage 4 | . 2 . . . 2 Processor 1 | . . . 1 . . Hackware . | . . . . . . Protection 8 | . 3 . 1 3 1 Artifact . | . . . . . . Weapon 24 | 1 8 . 3 3 9 Energy Gun 2 | 1 1 . . . . Energy Cannon 1 | . . . 1 . . Ballistic Gun 16 | . 6 . 1 3 6 Ballistic Cannon . | . . . . . . Launcher 4 | . 1 . 1 . 2 Special Weapon . | . . . . . . Impact Weapon . | . . . . . . Slashing Weapon 1 | . . . . . 1 Piercing Weapon . | . . . . . . Special Melee Weapon . | . . . . . . Unidentified Prototypes 1 | . . . 1 . . Parts Lost 25 | . . . 2 4 19 Power 2 | . . . 1 . 1 Propulsion 8 | . . . . 2 6 Utility 7 | . . . 1 1 5 Weapon 8 | . . . . 1 7 Highest Loss Streak 11 | . . . 1 3 11 Average Slot Usage (%) 95 | . 97 100 97 81 96 Engine 12 | . 14 14 10 11 10 Treads 24 | . 28 28 22 21 21 Storage 12 | . 14 14 11 11 14 Processor 5 | . . . 8 11 8 Protection 14 | . 12 14 21 4 18 Energy Gun 1 | . 3 . . . . Energy Cannon 2 | . . . 6 3 . Ballistic Gun 20 | . 24 28 15 16 21 Naked Turns . | . . . . . . Heaviest Build 42 | 14 34 38 42 37 39 Greatest Support 40 | 40 40 40 40 40 40 Greatest Overweight (x) 9 | . . . 1 1 9 Average Overweight (x) . | . . . . . . Largest Inventory Capacity 15 | 8 15 15 15 15 15 Average Capacity 13 | 8 9 15 15 15 14 Most Carried 15 | 6 11 13 15 15 15 Average Carried 11 | 6 9 11 13 13 13 Final Capacity 15 | 8 15 15 15 15 5 Final Carried 15 | 6 11 13 14 15 4 Class Distribution -------------------- 88% | Mutant 11% | Scavenger-Mutant Dominant Class ---------------- Mutant | -10/Materials Mutant | -10/Mines Mutant | -9/Materials Mutant | -9/Mines Scavenger-Mutant | -9/Exiles Resources | -11 -10 -10 -9 -9 -9 ----------- Run | Scr Mat Min Mat Min Exi Matter Collected 1333 | 161 304 209 227 218 214 Remotely . | . . . . . . Salvage Created 1672 | . 435 62 814 293 68 Parts 105 | . 35 7 49 14 . Haulers Intercepted 2 | . 2 . . . . Recyclers Shooed . | . . . . . . Parts Field Recycled . | . . . . . . Retrieved Matter . | . . . . . . Parts Self-Destructed . | . . . . . . Prevented . | . . . . . . Kills | -11 -10 -10 -9 -9 -9 ------- Run | Scr Mat Min Mat Min Exi Combat Hostiles Destroyed 51 | . 12 3 20 10 6 Guns 31 | . 12 3 8 6 2 Cannons 15 | . . . 12 3 . AOE 5 | . . . . 1 4 Classes Destroyed 9 | . 5 . 1 2 1 Worker 3 | . 1 1 . 1 . Hauler 2 | . 2 . . . . Watcher 5 | . 3 . 2 . . Swarmer 20 | . 9 3 4 4 . Grunt 17 | . 3 . 11 3 . Brawler 1 | . . . . 1 . Sentry 6 | . . . 5 1 . Demolisher 1 | . . . . 1 . Assembled 7 | . . . . . 7 Best Kill Streak 5 | . 3 2 3 4 5 Combat Bots Only 5 | . 3 2 3 4 5 Max Kills in Single Turn 2 | . 1 1 1 2 2 Gunslinging . | . . . . . . Exploded 2 | . . . . 1 2 Melee . | . . . . . . Uniques/NPCs Destroyed 1 | . . . . . 1 8R-AWN (-9/Exiles) Combat | -11 -10 -10 -9 -9 -9 -------- Run | Scr Mat Min Mat Min Exi Damage Taken 3612 | . 188 55 639 607 2123 Core 486 | . 37 8 46 76 319 Absorbed by Shields . | . . . . . . Core Remaining (%) 91 | 100 . 82 . . . Volleys Fired 162 | . 41 7 44 25 45 Largest 2 | . 2 2 2 2 2 Hottest 91 | . 60 46 91 91 46 Shots Fired 312 | . 81 14 87 47 83 Gun 259 | . 80 14 50 36 79 Cannon 47 | . . . 37 10 . Launcher 6 | . 1 . . 1 4 Special . | . . . . . . Kinetic 257 | . 78 14 50 36 79 Thermal 47 | . . . 37 10 . Explosive 6 | . 1 . . 1 4 Electromagnetic 2 | . 2 . . . . Robot Hit Streak 15 | . 6 5 15 11 12 Robot Miss Streak 7 | . 3 2 7 2 4 Penetration Max . | . . . . . . Secondary Targets 2 | . . . 1 1 . Max Gunslinging Chain 1 | . . . 1 1 . Shots Hit Robots 205 | . 40 11 55 33 66 Core Hits 108 | . 22 4 32 16 34 Critical Kills . | . . . . . . Critical Parts Destroyed 3 | . . . 2 . 1 Critical Strikes 3 | . . . 2 . 1 Destroy 3 | . . . 2 . 1 Melee Attacks 2 | . . . . . 2 Impact . | . . . . . . Slashing 2 | . . . . . 2 Piercing . | . . . . . . Sneak Attacks . | . . . . . . Combat Hostiles . | . . . . . . Follow-up Attacks . | . . . . . . Damage Inflicted 3885 | . 567 157 1077 768 1316 Guns 2486 | . 515 146 504 367 954 Cannons 762 | . . . 572 190 . Explosions 552 | . 40 . . 186 326 Melee 36 | . . . . . 36 Ramming 49 | . 12 11 1 25 . Kinetic 2466 | . 495 146 504 367 954 Thermal 971 | . 40 . 572 359 . Explosive 343 | . . . . 17 326 Electromagnetic 20 | . 20 . . . . Impact . | . . . . . . Slashing 36 | . . . . . 36 Piercing . | . . . . . . Highest Corruption . | . . . . . . Average Corruption . | . . . . . . Corruption Purged . | . . . . . . Overload Shots . | . . . . . . Overflow Damage 16 | . . . 3 7 6 Projectiles 3 | . . . 3 . . Explosions 13 | . . . . 7 6 Melee . | . . . . . . Knockbacks . | . . . . . . Impact . | . . . . . . Kinetic . | . . . . . . Secondary . | . . . . . . Self-Inflicted Damage 39 | . . . . 34 5 Shots 3 | . . . . 2 1 Rammed 8 | . 2 1 1 4 . Targets Rammed 8 | . 2 1 1 4 . Kicked . | . . . . . . Crushed . | . . . . . . Highest Temperature 267 | . 2 . 267 123 . Average Temperature 66 | . 2 . 70 46 . Received Heat Transfer 345 | . 12 . 282 51 . Siege Activations . | . . . . . . Robots Corrupted . | . . . . . . Combat Hostiles . | . . . . . . Parts Fried . | . . . . . . Impact Corruptions . | . . . . . . Robots Melted . | . . . . . . Combat Hostiles . | . . . . . . Parts Melted 2 | . . . . 2 . Heat Transferred 1545 | . 50 . 962 533 . Parts Sabotaged . | . . . . . . Parts Stolen . | . . . . . . Parts Stripped . | . . . . . . Power Chain Reactions 1 | . 1 . . . . Missiles Intercepted . | . . . . . . Alert | -11 -10 -10 -9 -9 -9 ------- Run | Scr Mat Min Mat Min Exi Peak Influence 287 | . 115 68 225 287 . Initial 87 | . . 3 . 87 . Average 36 | . 34 8 30 77 . Maximum Alert Level 1 | . . . 1 1 . Low Security (%) 97 | 100 100 100 98 90 . Level 1 2 | . . . 1 9 . Level 2 . | . . . . . . Level 3 . | . . . . . . Level 4 . | . . . . . . Level 5 . | . . . . . . High Security . | . . . . . . Max Security . | . . . . . . Squads Dispatched 7 | . 3 1 3 . . Investigation 3 | . 1 1 1 . . Extermination . | . . . . . . Reinforcement 4 | . 2 . 2 . . Assault . | . . . . . . Garrison . | . . . . . . Intercept . | . . . . . . Construction Impeded . | . . . . . . Haulers Reinforced . | . . . . . . Active Scanning Responses . | . . . . . . Cargo Convoy Interrupts . | . . . . . . Stealth | -11 -10 -10 -9 -9 -9 --------- Run | Scr Mat Min Mat Min Exi Distress Signals 3 | . . . 3 . . Communications Jammed . | . . . . . . Distress Signals . | . . . . . . Times Spotted 90 | . 18 4 26 13 29 Peak Tracking Total 7 | . 4 3 5 4 7 Tactical Retreats 5 | . . 1 . . 4 Traps | -11 -10 -10 -9 -9 -9 ------- Run | Scr Mat Min Mat Min Exi Traps Triggered 4 | . 2 . 2 . . Indirectly . | . . . . . . Trap Hack Attempts . | . . . . . . Triggered . | . . . . . . Disarmed . | . . . . . . Reprogrammed . | . . . . . . Reused . | . . . . . . Traps Extracted . | . . . . . . Installed . | . . . . . . Triggered . | . . . . . . Machines | -11 -10 -10 -9 -9 -9 ---------- Run | Scr Mat Min Mat Min Exi Machines Disabled 11 | . 1 . 1 7 2 Max in Single Turn 6 | . 1 . 1 6 1 Machines Sabotaged . | . . . . . . Garrisons Compromised . | . . . . . . Overloaded Fab Kills . | . . . . . . Hacking | -11 -10 -10 -9 -9 -9 --------- Run | Scr Mat Min Mat Min Exi Machines Accessed 16 | . 8 1 5 . 2 Terminals 11 | . 6 . 5 . . Fabricators . | . . . . . . Repair Stations 1 | . 1 . . . . Recycling Units 1 | . 1 . . . . Scanalyzers . | . . . . . . Garrison Access . | . . . . . . Total Hacks 48 | . 21 1 24 . 2 Successful 28 | . 16 1 9 . 2 Failed 20 | . 5 . 15 . . Catastrophic 4 | . 1 . 3 . . Database Lockouts . | . . . . . . Manual 24 | . 12 . 11 . 1 Terminals 40 | . 16 . 24 . . Fabricators . | . . . . . . Repair Stations 4 | . 4 . . . . Recycling Units 1 | . 1 . . . . Scanalyzers . | . . . . . . Garrison Access . | . . . . . . Terminal Hacks 15 | . 7 1 5 . 2 Record 1 | . . . . . 1 Part Schematic 1 | . . . 1 . . Robot Analysis 3 | . 2 . 1 . . Prototype ID Bank 2 | . 2 . . . . Open Door 1 | . . 1 . . . Unreport Threat 2 | . . . 2 . . Locate Traps 3 | . 2 . 1 . . Hauler Manifests 1 | . 1 . . . . EX-Prototype ID Bank 1 | . . . . . 1 Fabricator Hacks . | . . . . . . Repair Station Hacks 4 | . 4 . . . . Scan Component 2 | . 2 . . . . Repair 2 | . 2 . . . . Recycling Unit Hacks 1 | . 1 . . . . Report Inventory 1 | . 1 . . . . Scanalyzer . | . . . . . . Garrison Access Hacks . | . . . . . . Unauthorized Hacks 8 | . 4 . 4 . . Terminals 8 | . 4 . 4 . . Track 4 | . 2 . 2 . . Botnet 4 | . 2 . 2 . . Fabricators . | . . . . . . Repair Stations . | . . . . . . Recycling Units . | . . . . . . Scanalyzers . | . . . . . . Garrison Access . | . . . . . . Data Cores Recovered . | . . . . . . Used . | . . . . . . Hacking Detections 10 | . 6 . 4 . . Full Trace Events 1 | . . . 1 . . Feedback Events . | . . . . . . Feedback Blocked . | . . . . . . Robot Schematics Acquired . | . . . . . . Robots Built . | . . . . . . Authchips . | . . . . . . Time . | . . . . . . Total Robot Build Rating . | . . . . . . Part Schematics Acquired 1 | . . . 1 . . Parts Built . | . . . . . . Authchips . | . . . . . . Time . | . . . . . . Total Part Build Rating . | . . . . . . Parts Repaired 2 | . 2 . . . . Time 52 | . 52 . . . . Parts Recycled . | . . . . . . Recycled Matter . | . . . . . . Retrieved Matter . | . . . . . . Retrieved Components . | . . . . . . Parts Scanalyzed . | . . . . . . Part Schematics Acquired . | . . . . . . Parts Damaged . | . . . . . . Bothacking | -11 -10 -10 -9 -9 -9 ------------ Run | Scr Mat Min Mat Min Exi Used RIF Installer . | . . . . . . Robots Hacked . | . . . . . . Non-combat . | . . . . . . Combat . | . . . . . . Robot Hacks Applied . | . . . . . . Relay Couplers Released . | . . . . . . Robots Rewired . | . . . . . . Allies Hacked . | . . . . . . Hacks Repelled . | . . . . . . Allies | -11 -10 -10 -9 -9 -9 -------- Run | Scr Mat Min Mat Min Exi Total Allies 1 | . . . . 1 . Largest Group 1 | . . . . 1 . Highest-Rated Group 31 | . . . . 31 . Highest-Rated Ally 31 | . . . . 31 . Total Orders . | . . . . . . Ally Attacks 2 | . . . . 2 . Total Damage 44 | . . . . 44 . Kills 1 | . . . . 1 . Allies Corrupted . | . . . . . . Allies Melted . | . . . . . . Intel | -11 -10 -10 -9 -9 -9 ------- Run | Scr Mat Min Mat Min Exi Robot Analysis Total 3 | . 2 . 1 . . Derelict Logs Recovered 3 | . . 2 . 1 . Drone Launches . | . . . . . . Drone Recoveries . | . . . . . . Exploration | -11 -10 -10 -9 -9 -9 ------------- Run | Scr Mat Min Mat Min Exi Turns Passed 9816 | 10 3026 1259 2881 1448 1192 Spaces Moved 3241 | 1 819 538 608 634 641 Core 2 | . . . . . 2 Treads 3239 | 1 819 538 608 634 639 Legs . | . . . . . . Wheels . | . . . . . . Hover . | . . . . . . Flight . | . . . . . . Fastest Speed 100 | 160 160 160 160 160 100 Average Speed 173 | 160 160 160 229 160 161 Slowest Speed 500 | 160 160 160 240 240 500 Overloaded Moves . | . . . . . . Propulsion Burnouts . | . . . . . . Robots Hopped . | . . . . . . Cave-ins Triggered . | . . . . . . Exploration Rate (%) 70 | 2 95 100 52 99 72 Regions Visited 5 Branch Regions 3 Pre-discovered Areas 2 | . . 1 . . 1 Known Exits Taken 1 | . . . 1 . . Unknown Exits Taken 4 | 1 1 1 . 1 . Scrap Searched 1 | . . 1 . . . Spaces Dug 9 | . 9 . . . . Terrain Destroyed 60 | . 11 . . 38 11 Melee . | . . . . . . Projectile . | . . . . . . AOE 60 | . 11 . . 38 11 Terrain Rammed . | . . . . . . Walls Destroyed . | . . . . . . Machines Disabled . | . . . . . . Actions | -11 -10 -10 -9 -9 -9 --------- Run | Scr Mat Min Mat Min Exi Total 7120 | 8 2458 921 2003 1016 714 Wait 3612 | 5 1553 374 1339 341 . Move 3236 | . 818 537 607 633 641 Hop . | . . . . . . Pick Up 22 | . 13 1 1 2 5 Fast Attach 12 | . 5 . 2 3 2 Attach 15 | . . . 2 3 10 Detach 3 | . 1 . 1 1 . Swap 25 | 3 10 1 4 3 4 Drop 23 | . 15 . 2 1 5 Fire 162 | . 41 7 44 25 45 Melee 2 | . . . . . 2 Ram . | . . . . . . Kick . | . . . . . . Crush 8 | . 2 1 1 4 . Escape Stasis . | . . . . . . Rewire . | . . . . . . Trap . | . . . . . . Miscellaneous . | . . . . . . Route ------- -11/Scrapyard -10/Materials (discovered 4 exits: *Mat x3 / *Min) -10/Mines (discovered 2 exits: *Mat x2) -9/Materials (discovered 3 exits: [*Mat] / *Min x2) -9/Mines (discovered 4 exits: [*Mat x2] / *Exi / [*Zio]) -9/Exiles (discovered 2 exits: [*Min x2]) History --------- Turn | Location | Event 11 | -11/Scrapyard | Discovered new exit (range 0) 11 | -11/Scrapyard | Entered Materials 316 | -10/Materials | Build established: Mutant 829 | -10/Materials | Discovered new exit (range 13) 2149 | -10/Materials | Discovered new exit (range 13) 2266 | -10/Materials | Discovered new exit (range 8) 2707 | -10/Materials | Repaired Lgt. Armor Plating 2734 | -10/Materials | Repaired Assault Rifle 2933 | -10/Materials | Discovered new exit (range 16) 3037 | -10/Materials | Entered Mines 3325 | -10/Mines | Discovered new exit (range 5) 3420 | -10/Mines | Discovered new exit (range 12) 3710 | -10/Mines | Learned 8 Materials zone layouts 3749 | -10/Mines | Met a Derelict shopkeep closing up shop 3926 | -10/Mines | Learned location of Zion (-7) 4296 | -10/Mines | Entered Materials 4296 | -9/Materials | Evolved 2 slots: Utility x2 4297 | -9/Materials | Identified exit to Mines 5522 | -9/Materials | Discovered new exit (range 4) 6800 | -9/Materials | Discovered exit to Mines (range 5) 7177 | -9/Materials | Entered Mines 7178 | -9/Mines | A Derelict revealed a hidden shortcut to a safe place 7198 | -9/Mines | Met a Derelict bent on vengeance 7299 | -9/Mines | Learned Materials emergency access door positions 7517 | -9/Mines | Discovered new exit (range 4) 7638 | -9/Mines | Assembled infested the area 7708 | -9/Mines | Lost 3 parts (2n1w) 8145 | -9/Mines | Escorted by a lone wolf Derelict 8147 | -9/Mines | Discovered new exit (range 8) 8335 | -9/Mines | Discovered new exit (range 5) 8625 | -9/Mines | Entered Exiles 8625 | -9/Exiles | Accompanied by 1 ally 8664 | -9/Exiles | Met 8R-AWN 8688 | -9/Exiles | Met EX-HEX 8716 | -9/Exiles | Build established: Scavenger-Mutant 8768 | -9/Exiles | Met EX-DEC 8869 | -9/Exiles | Discovered new exit (range 11) 9049 | -9/Exiles | Discovered new exit (range 16) 9161 | -9/Exiles | Met EX-BIN 9181 | -9/Exiles | Aligned with FarCom system 9182 | -9/Exiles | Given EX-Vault access code 9219 | -9/Exiles | Opened EX-Vault 9232 | -9/Exiles | Found Skeleton Box 9240 | -9/Exiles | Found PSU Rigger 9275 | -9/Exiles | Warned to stay clear of 0b10 Research branches 9570 | -9/Exiles | Attacked by the Exiles 9639 | -9/Exiles | Core integrity fell below 50% 9702 | -9/Exiles | Destroyed 8R-AWN 9709 | -9/Exiles | Lost 8 parts (2n3u3w) 9776 | -9/Exiles | Core integrity fell below 20% 9817 | -9/Exiles | Destroyed by DAS Turret with DAS Cannon Last Messages --------------- 09702_ 8R-AWN destroyed. 09707_ Acquired 40 matter. 09723_ Acquired 3 matter. 09724_ Acquired 8 matter. 09726_ Acquired 4 matter. 09727_ Acquired 8 matter. 09764_ Acquired 7 matter. 09771_ Shotgun destroyed. 09777_ Grenade Launcher destroyed. 09777_ Ion Engine destroyed. 09781_ Shotgun destroyed. 09781_ Lgt. Treads destroyed. 09783_ Machine disabled. 09789_ Lgt. Treads destroyed. 09804_ Hvy. Assault Rifle destroyed. 09809_ Lgt. Treads destroyed. 09809_ Knocked back. 09813_ Lrg. Storage Unit destroyed. 09813_ Hcp. Matter Pod destroyed. 09813_ Knocked back. Map ----- +----------------------------------------------------+ | #"" #??????????????" #????????# | | # #??????????????" #????????#" | | #### ##?????????????" "#????????#" | | ???### "#????????????? ""?????????#" | | #####" ###???????????" "?????????##" | | !""""" ##??????????# #????????##"" | | "###"" ######???### ###?######"" | | "#?##" """#####X# #"###""""""" | | ##??#" """""" " "" | | """"""###???#"# "" """ " | | ######??????#### " " | | ???????????????### | | ?????????????????### | | ???????????????????## | | ????????????????????## | | ?????????????????????##" % | | ??????????????????????#""" """""" | | ?????????????????????##" % ######""" | | ?????????????????????#"" ""##????#### | | ????????????????????##""" ""##????????? | | ????????????????????#""" """##?????????? | | ????????????????????#""" ""#??????????? | | ????????????????????#" ########??### | | ????????????????????#""" % % ## ####"" | | ????????????????????#"" % % """" | | ????????????????????##""t@ % % % | | ?????????????????????#"" % | | ?????????????????????##% % | | ??????????????????????#" % % % | | ??????????????????????#"""" ""## ## | | ??????????????????????#"" %""#### ## | | ??????????????????????#" "" "##??# #? | | ??????????????????????#""" """#??## ## | | ??????????????????????## ""##??#! " | | ???????????????????????#"" """##???#" | | ???????????????????????##""" ##????#" | | ????????????????????????##"""" ##?????# ""! | | ?????????????????????????### #??????###### | | ???????????????????????????##### ##???????????? | | ???????????????????????????????## #????????????? | | ????????????????????????????????# #????????????? | | ????????????????????????????????# #????????????? | | ????????????????????????????????# #????????????? | | ????????????????????????????????# #????????????? | | ????????????????????????????????? ?????????????? | | ????????????????????????????????? ?????????????? | | ????????????????????????????????? ?????????????? | | ?????????????????????????????????????????????????? | | ?????????????????????????????????????????????????? | | ?????????????????????????????????????????????????? | +----------------------------------------------------+ Best States ------------- Heat Dissipation 28 Energy Generation 14 Energy Capacity 275 Matter Stores 556 Matter Capacity 700 Sight Range 18 Terrain Scan Density 10 Armor Coverage 300 Propulsion Shielding 33 Utility Shielding 33 Evasion (%) 40 Recoil Reduction 2 Item Schematics ----------------- Lrg. Storage Unit | -9/Materials | Hacked Robot Schematics ------------------ None Fabricated ------------ Nothing Alien Tech Used ----------------- None Achievements -------------- None Challenges ------------ None Game ------ Seed BlastHellfireDoomcannon Manual? 0 Play Time 00:37:59 Cumulative 273.6 hours Start 2021.11.27 @ 15:20:41 End 2021.11.27 @ 15:56:38 Sessions 1 Manual Loads 0 Difficulty Rogue Special Mode None Game No. 196 Rogue 196 Adventurer 0 Explorer 0 Win Type - Total 6 Types 6/0/0/0/0/0/0/0/0 Lore% 57 Gallery% 65 Achievement% 51 Wizard Run 0 Options --------- ASCII 1 Keyboard 1 Movement Arrows Keybinds 0 Fullscreen 1 Font 24/Smallcaps Map View 76x50 Tactical HUD 1 Map Filters NONE Filters NONE Steam 1 RUN: 26a72d44-cb84-4bb5-997b-1ac47d942a78